bitfinex/quotes_BTCUSD_20220218
["timestamp","ask_amount","ask_price","bid_price","bid_amount"]
[1645142563450,0.53444208,40503.0,40501.0,0.22654483]
[1645142563451,0.30458969,40502.0,40501.0,0.22654483]
[1645142563654,0.30458969,40502.0,40477.0,0.26185734]
[1645142563655,0.927918,40501.0,40477.0,0.26185734]
[1645142563856,0.927918,40501.0,40473.0,0.36770027]
[1645142563857,0.05,40494.0,40479.0,0.000372]
[1645142564195,0.277918,40488.0,40479.0,0.000372]
[1645142564391,0.6175,40484.0,40479.0,0.000372]
[1645142564596,0.25734006,40472.0,40471.0,0.0010745]
[1645142564791,0.277318,40472.0,40471.0,0.0010745]
[1645142564997,0.277318,40472.0,40471.0,0.00135372]
[1645142564998,0.08220572,40472.0,40471.0,0.00135372]
[1645142565192,0.08220572,40472.0,40470.0,0.30858209]
[1645142565193,0.0494,40472.0,40470.0,0.30858209]
[1645142565394,0.111222,40472.0,40470.0,0.30858209]
[1645142565791,0.111222,40472.0,40471.0,0.24]
[1645142565792,0.33914,40472.0,40471.0,0.24]
[1645142565989,0.33914,40472.0,40471.0,0.2402779]
[1645142566391,0.0494,40472.0,40471.0,0.6258159]
[1645142566595,0.123596,40481.0,40471.0,0.6258159]
[1645142566596,0.05,40484.0,40472.0,0.14819999]
[1645142566797,0.74104,40487.0,40481.0,0.05]
[1645142566994,0.06076,40488.0,40481.0,0.05]
[1645142566995,0.06076,40488.0,40485.0,0.05]
[1645142567190,0.06076,40488.0,40482.0,0.635538]
[1645142567191,0.06076,40488.0,40483.0,0.3]
[1645142567492,0.06076,40488.0,40487.0,0.33225442]
[1645142567694,0.123538,40498.0,40488.0,0.7]
[1645142567955,0.00014127,40502.0,40495.0,0.05]
[1645142568249,0.00014127,40502.0,40491.0,0.00022213]
[1645142568250,0.227918,40501.0,40491.0,0.00022213]
[1645142568450,0.06198408,40500.0,40491.0,0.00022213]
[1645142568748,0.06198408,40500.0,40491.0,0.00027635]
[1645142568749,0.927918,40499.0,40491.0,0.00027635]
[1645142568947,0.227918,40496.0,40489.0,0.00027635]
[1645142569146,0.227918,40496.0,40487.0,0.33225442]
[1645142569147,0.22683678,40496.0,40487.0,0.33225442]
[1645142569346,0.05,40497.0,40487.0,0.33225442]
[1645142569545,0.226824,40496.0,40487.0,0.33225442]
[1645142569948,0.061775,40496.0,40487.0,0.33225442]
[1645142570447,0.061775,40496.0,40488.0,0.3]
[1645142570647,0.05,40497.0,40488.0,0.3]
[1645142570648,0.05,40497.0,40492.0,0.04050003]
[1645142570847,0.05,40497.0,40493.0,0.29329117]
[1645142571047,0.05,40497.0,40493.0,0.00027635]
[1645142571247,0.05,40497.0,40490.0,0.00027635]
[1645142571447,0.226824,40496.0,40489.0,0.51831055]
[1645142571691,0.226824,40496.0,40489.0,0.00027635]
[1645142571889,0.226824,40496.0,40489.0,0.00022215]
[1645142572089,0.05,40497.0,40489.0,0.0004985]
[1645142572090,0.226824,40494.0,40489.0,0.0004985]
[1645142572291,0.0094,40495.0,40489.0,0.00022215]
[1645142572897,0.226824,40494.0,40488.0,0.00027635]
[1645142573094,0.226824,40494.0,40489.0,0.00021464]
[1645142573292,0.288598,40494.0,40489.0,0.00021464]
[1645142573699,0.00949997,40491.0,40489.0,0.00021464]
[1645142573897,0.226824,40490.0,40489.0,0.00021464]
[1645142574101,0.576224,40490.0,40482.0,0.00027635]
[1645142574295,0.576224,40490.0,40475.0,0.00027635]
[1645142574296,0.00949997,40483.0,40475.0,0.00027635]
[1645142574494,0.226824,40475.0,40472.0,0.14847634]
[1645142574693,0.0494,40474.0,40472.0,0.14819999]
[1645142574893,0.0494,40474.0,40472.0,0.14847634]
[1645142575294,0.0098,40481.0,40472.0,0.14847634]
[1645142575295,0.0592,40481.0,40472.0,0.14847634]
[1645142575549,0.0592,40481.0,40468.0,0.0020334]
[1645142575550,0.00949997,40474.0,40468.0,0.0020334]
[1645142575750,0.273464,40473.0,40470.0,0.00027509]
[1645142575950,0.100423,40470.0,40468.0,0.00230849]
[1645142576146,0.00949997,40471.0,40468.0,0.00230849]
[1645142576147,0.149823,40469.0,40468.0,0.00230849]
[1645142576547,0.199823,40469.0,40468.0,0.00230849]
[1645142576748,0.199823,40469.0,40459.0,0.00307565]
[1645142576749,0.800423,40468.0,40462.0,0.00232204]
[1645142576948,0.800423,40468.0,40460.0,0.00088829]
[1645142576949,0.62699997,40463.0,40460.0,0.00088829]
[1645142577145,0.10992297,40461.0,40460.0,0.00116206]
[1645142577345,0.0494,40462.0,40460.0,0.00088829]
[1645142577346,0.1,40462.0,40460.0,0.00088829]
[1645142577545,0.0494,40461.0,40460.0,0.00088829]
[1645142577746,0.0494,40461.0,40454.0,0.00040585]
[1645142577945,0.0494,40461.0,40454.0,0.00013208]
[1645142578149,0.0494,40461.0,40454.0,0.00040585]
[1645142578350,1.3175,40459.0,40448.0,0.00048277]
[1645142578546,1.3175,40459.0,40444.0,0.0010511]
[1645142578547,0.061842,40454.0,40444.0,0.0010511]
[1645142578753,0.20379306,40453.0,40446.0,0.00026976]
[1645142578946,0.20379306,40453.0,40446.0,0.26762932]
[1645142578947,0.82129306,40453.0,40446.0,0.26762932]
[1645142579219,0.82129306,40453.0,40451.0,0.24659694]
[1645142579220,0.6175,40453.0,40451.0,0.24659694]
[1645142579417,0.001,40459.0,40452.0,0.635843]
[1645142579617,0.001,40459.0,40452.0,0.30026976]
[1645142579817,0.0494,40458.0,40453.0,0.335843]
[1645142580020,0.12363441,40476.0,40453.0,0.335843]
[1645142580021,0.0097,40475.0,40457.0,0.7]
[1645142580219,0.0097,40475.0,40466.0,0.22024681]
[1645142580416,0.123604,40486.0,40466.0,0.22024681]
[1645142580417,0.3,40481.0,40466.0,0.22024681]
[1645142580615,1.16890672,40481.0,40466.0,0.27024681]
[1645142580821,0.061793,40480.0,40469.0,0.025]
[1645142581020,0.00249999,40468.0,40458.0,0.19696361]
[1645142581220,0.00249999,40468.0,40466.0,0.31985815]
[1645142581616,0.00249999,40468.0,40466.0,0.001]
[1645142582619,0.00249999,40468.0,40462.0,0.29750493]
[1645142582820,0.00249999,40468.0,40464.0,0.00022205]
[1645142583382,0.00449999,40468.0,40464.0,0.00022205]
[1645142583577,0.00449999,40468.0,40464.0,0.00049181]
[1645142583775,0.00449999,40468.0,40463.0,0.42550813]
[1645142583976,0.00449999,40468.0,40463.0,0.00026976]
[1645142584179,0.00449999,40468.0,40462.0,0.34723517]
[1645142584576,0.00249999,40468.0,40462.0,0.34723517]
[1645142584777,0.00249999,40468.0,40462.0,0.29723517]
[1645142584977,0.00249999,40468.0,40465.0,0.23719139]
[1645142585375,0.00249999,40468.0,40463.0,0.00026976]
[1645142585578,0.00249999,40468.0,40462.0,0.29723517]
[1645142585777,0.00249999,40468.0,40463.0,0.00026976]
[1645142585984,0.00249999,40468.0,40455.0,0.42029765]
[1645142585985,0.00249999,40468.0,40460.0,0.00026976]
[1645142586181,0.00249999,40468.0,40456.0,0.05]
[1645142586182,0.05,40465.0,40456.0,0.00026976]
[1645142586378,0.05,40465.0,40454.0,0.00105664]
[1645142586379,0.543069,40464.0,40455.0,0.00026976]
[1645142586689,0.543069,40464.0,40462.0,0.00022171]
[1645142586690,0.3,40463.0,40462.0,0.00022171]
[1645142586892,0.05,40465.0,40464.0,0.11691612]
[1645142587992,0.00014084,40467.0,40464.0,0.11718588]
[1645142588190,0.00014084,40467.0,40464.0,0.12538588]
[1645142588993,0.00014084,40467.0,40464.0,0.12511612]
[1645142589195,0.11182111,40475.0,40470.0,2.39e-06]
[1645142589196,0.35,40472.0,40470.0,2.39e-06]
[1645142589393,0.35,40472.0,40464.0,0.11691612]
[1645142589394,0.0494,40466.0,40464.0,0.11718588]
[1645142589591,0.0494,40466.0,40463.0,1.71e-06]
[1645142589592,1.66428871,40465.0,40463.0,1.71e-06]
[1645142589792,0.3,40464.0,40463.0,1.71e-06]
[1645142589993,0.3,40464.0,40458.0,0.00026715]
[1645142589994,1.09646679,40464.0,40458.0,0.00026715]
[1645142590192,1.09646679,40464.0,40446.0,0.33947698]
[1645142590193,0.061848,40462.0,40455.0,0.00026715]
[1645142590441,0.061848,40462.0,40447.0,0.00026715]
[1645142590442,0.21258461,40458.0,40447.0,0.00026715]
[1645142590645,0.0494,40457.0,40447.0,0.00026715]
[1645142590841,0.111245,40457.0,40451.0,0.23931392]
[1645142591046,0.111245,40457.0,40452.0,0.00026715]
[1645142591250,0.111245,40457.0,40453.0,0.00021668]
[1645142591442,0.161245,40457.0,40453.0,0.00021668]
[1645142591644,0.161245,40457.0,40454.0,0.00132379]
[1645142591842,0.161245,40457.0,40453.0,0.00021668]
[1645142592042,0.161245,40457.0,40453.0,6.68e-06]
[1645142592043,0.05,40454.0,40453.0,6.68e-06]
[1645142592248,2.0426,40454.0,40453.0,6.68e-06]
[1645142592443,0.21325947,40441.0,40440.0,0.00036351]
[1645142592644,0.25975947,40441.0,40440.0,0.00036351]
[1645142592842,0.30975947,40441.0,40440.0,0.00036351]
[1645142593042,0.30975947,40441.0,40428.0,0.0002]
[1645142593247,0.30975947,40441.0,40439.0,0.00026336]
[1645142593248,0.0514,40441.0,40439.0,0.00026336]
[1645142593444,0.0514,40441.0,40437.0,0.25014902]
[1645142593644,0.0514,40441.0,40437.0,0.22014902]
[1645142593848,0.0514,40441.0,40435.0,0.00026336]
[1645142594044,0.0464,40441.0,40435.0,0.05]
[1645142594298,0.0464,40441.0,40435.0,0.00026336]
[1645142594498,0.0464,40441.0,40434.0,0.00026336]
[1645142594697,0.0464,40441.0,40427.0,0.00112184]
[1645142594698,0.0444,40441.0,40427.0,0.00112184]
[1645142594896,0.3,40440.0,40436.0,9.21e-05]
[1645142595114,0.08040655,40442.0,40436.0,9.21e-05]
[1645142595299,0.002,40441.0,40437.0,0.24451182]
[1645142595496,0.0494,40440.0,40436.0,0.00035546]
[1645142595698,0.0494,40440.0,40436.0,9.21e-05]
[1645142595897,0.0494,40440.0,40431.0,0.00026336]
[1645142596097,0.061869,40437.0,40428.0,0.00026336]
[1645142596299,0.061869,40437.0,40427.0,0.00112184]
[1645142596300,0.0494,40436.0,40427.0,0.00112184]
[1645142596504,0.05,40434.0,40433.0,0.19528121]
[1645142596697,0.002,40441.0,40440.0,0.30086443]
[1645142596698,0.302,40441.0,40440.0,0.30086443]
[1645142596898,0.0514,40441.0,40440.0,0.30086443]
[1645142597099,0.0494,40441.0,40440.0,0.30086443]
[1645142597299,0.11133283,40441.0,40440.0,0.30086443]
[1645142597945,0.11133283,40441.0,40440.0,0.29966443]
[1645142598746,0.16133283,40441.0,40440.0,0.29966443]
[1645142598946,0.21133283,40441.0,40440.0,0.29966443]
[1645142599347,0.16133283,40441.0,40440.0,0.29966443]
[1645142599751,0.16133283,40441.0,40440.0,0.52966443]
[1645142599951,0.16133283,40441.0,40438.0,3.45e-06]
[1645142599952,0.061869,40440.0,40438.0,3.45e-06]
[1645142600152,2.69469,40439.0,40433.0,0.00025948]
[1645142600353,0.061894,40432.0,40423.0,0.0011]
[1645142600551,1.999,40427.0,40423.0,0.0011]
[1645142600750,2.08967,40426.0,40424.0,0.00025822]
[1645142600952,0.0494,40425.0,40417.0,0.28137084]
[1645142601153,0.0494,40425.0,40418.0,0.000257]
[1645142601154,0.6175,40422.0,40418.0,0.000257]
[1645142601351,0.6175,40422.0,40417.0,0.28162784]
[1645142601352,0.0494,40421.0,40417.0,0.28162784]
[1645142601551,0.111295,40421.0,40417.0,0.000257]
[1645142601799,0.111295,40421.0,40416.0,0.24587187]
[1645142602796,0.173188,40421.0,40416.0,0.24587187]
[1645142602996,0.111295,40421.0,40416.0,0.24587187]
[1645142603195,0.12379,40422.0,40416.0,0.24587187]
[1645142603196,0.10856544,40422.0,40416.0,0.24587187]
[1645142603395,0.0494,40421.0,40416.0,0.0028718]
[1645142603899,0.173188,40421.0,40417.0,0.34758542]
[1645142604094,0.111295,40421.0,40417.0,0.34784242]
[1645142604500,0.0097,40425.0,40418.0,0.05]
[1645142604698,0.0097,40425.0,40419.0,0.23459013]
[1645142604896,0.0097,40425.0,40419.0,0.23484713]
[1645142605093,0.0097,40425.0,40419.0,0.23459013]
[1645142605294,0.0097,40425.0,40419.0,0.23484713]
[1645142605544,0.18681411,40424.0,40419.0,0.23459013]
[1645142605746,0.18681411,40424.0,40418.0,0.000257]
[1645142605945,0.18681411,40424.0,40418.0,0.31272811]
[1645142606144,0.071582,40425.0,40418.0,0.31272811]
[1645142606346,0.071582,40425.0,40418.0,0.41272811]
[1645142607148,0.071582,40425.0,40418.0,0.31272811]
[1645142607345,6.183e-05,40420.0,40418.0,0.31272811]
[1645142607546,6.183e-05,40420.0,40417.0,0.000257]
[1645142607547,0.061895,40419.0,40417.0,0.000257]
[1645142607748,0.061895,40419.0,40416.0,0.0028718]
[1645142609045,0.061895,40419.0,40417.0,0.3430174]
[1645142609289,0.061895,40419.0,40417.0,0.000257]
[1645142609290,0.063895,40419.0,40417.0,0.000257]
[1645142609491,0.063895,40419.0,40416.0,0.0014886]
[1645142609796,0.063895,40419.0,40416.0,0.00093895]
[1645142609989,0.00215424,40420.0,40416.0,0.0006832]
[1645142610191,0.00215424,40420.0,40418.0,0.24946886]
[1645142610592,0.00215424,40420.0,40418.0,0.24972461]
[1645142610795,0.061895,40419.0,40417.0,0.03025575]
[1645142611092,0.061895,40419.0,40417.0,0.03]
[1645142611293,0.06139354,40421.0,40419.0,0.31023346]
[1645142611695,0.0097,40425.0,40419.0,0.31048921]
[1645142611893,0.1,40430.0,40419.0,0.31048921]
[1645142612092,0.1494,40430.0,40419.0,0.31048921]
[1645142612299,0.1494,40430.0,40419.0,0.51385144]
[1645142612300,0.061885,40428.0,40419.0,0.51385144]
[1645142612497,0.123773,40426.0,40424.0,0.26549761]
[1645142612696,0.0098,40429.0,40424.0,0.26549761]
[1645142612939,0.4186266,40438.0,40424.0,0.26549761]
[1645142613241,0.00013193,40431.0,40424.0,0.26549761]
[1645142613640,0.061879,40430.0,40424.0,0.26549761]
[1645142613841,0.002,40425.0,40424.0,0.26549761]
[1645142614241,0.002,40425.0,40419.0,0.00025575]
[1645142614445,0.002,40425.0,40423.0,0.32846695]
[1645142614846,0.002,40425.0,40421.0,0.00025575]
[1645142615043,0.061879,40426.0,40420.0,0.00025575]
[1645142615241,0.061879,40426.0,40418.0,0.24025575]
[1645142615445,0.061879,40426.0,40424.0,0.24605178]
[1645142615844,0.061879,40426.0,40419.0,0.00025575]
[1645142616046,0.071479,40426.0,40418.0,0.24025575]
[1645142616244,0.071479,40426.0,40418.0,0.29025575]
[1645142616697,0.061879,40426.0,40418.0,0.29025575]
[1645142616893,0.123769,40427.0,40426.0,0.07191455]
[1645142619192,0.185653,40428.0,40426.0,0.07191455]
[1645142619193,0.1829061,40428.0,40426.0,0.07191455]
[1645142619593,0.0591371,40428.0,40426.0,0.07191455]
[1645142619795,0.123769,40427.0,40426.0,0.07191455]
[1645142619999,0.123769,40427.0,40426.0,0.06815455]
[1645142620000,0.41608252,40427.0,40426.0,0.06815455]
[1645142620196,0.41608252,40427.0,40420.0,0.03]
[1645142620197,0.56608252,40427.0,40421.0,0.00025575]
[1645142620445,0.56608252,40427.0,40420.0,0.03]
[1645142620446,0.061903,40425.0,40420.0,0.03]
[1645142620647,0.35837626,40424.0,40420.0,0.03]
[1645142620844,0.31162093,40423.0,40420.0,0.03]
[1645142621045,0.05,40421.0,40413.0,0.00021953]
[1645142621246,0.05,40421.0,40418.0,0.2069]
[1645142621247,0.7,40419.0,40418.0,0.2069]
[1645142621444,0.12384856,40414.0,40413.0,0.00021951]
[1645142621645,0.17324856,40414.0,40412.0,0.00087805]
[1645142621844,0.061917,40413.0,40412.0,0.00087805]
[1645142622046,0.111317,40413.0,40412.0,0.00087805]
[1645142622647,0.111317,40413.0,40410.0,0.28193625]
[1645142622842,0.111317,40413.0,40408.0,0.24323713]
[1645142623045,0.111317,40413.0,40409.0,0.00025196]
[1645142623046,0.061917,40413.0,40409.0,0.00025196]
[1645142623245,0.061917,40413.0,40408.0,0.24323713]
[1645142624392,0.061917,40413.0,40409.0,0.29706027]
[1645142624594,0.061917,40413.0,40409.0,0.00025196]
[1645142624792,0.061917,40413.0,40408.0,0.00025196]
[1645142624990,0.061917,40413.0,40407.0,0.0013664]
[1645142625693,0.071393,40415.0,40408.0,0.23358097]
[1645142625894,0.071393,40415.0,40408.0,0.23383293]
[1645142626196,0.002,40413.0,40410.0,0.32919826]
[1645142626394,0.002,40413.0,40409.0,0.00047155]
[1645142626593,0.002,40413.0,40409.0,0.00021959]
[1645142626794,1.79051189,40412.0,40409.0,0.00047155]
[1645142626993,0.06191,40412.0,40409.0,0.00021959]
[1645142627195,0.06191,40412.0,40409.0,0.00047155]
[1645142627395,0.06191,40412.0,40408.0,0.23402097]
[1645142627396,0.06197005,40412.0,40408.0,0.23519933]
[1645142627596,0.285721,40419.0,40408.0,0.23519933]
[1645142627597,0.00021949,40427.0,40408.0,0.23541892]
[1645142627799,0.0619076,40414.0,40408.0,0.23541892]
[1645142628049,0.0619076,40414.0,40408.0,0.51117833]
[1645142628250,0.123818,40412.0,40408.0,0.23541892]
[1645142628450,0.123818,40412.0,40408.0,0.23519933]
[1645142628653,0.06191,40412.0,40409.0,0.00021959]
[1645142628853,0.06191,40412.0,40409.0,0.00047155]
[1645142629051,0.06191,40412.0,40409.0,0.00021959]
[1645142629251,0.06191,40412.0,40409.0,0.00047155]
[1645142629452,0.06191,40412.0,40409.0,0.27623349]
[1645142629652,0.061893,40414.0,40409.0,0.27626586]
[1645142629855,0.1819,40425.0,40409.0,0.27626586]
[1645142630057,0.1181,40426.0,40422.0,0.24988265]
[1645142630058,0.17998769,40426.0,40422.0,0.24988265]
[1645142630255,0.1181,40426.0,40422.0,0.24988265]
[1645142630457,0.1181,40426.0,40416.0,0.0013664]
[1645142630654,0.185658,40425.0,40418.0,0.2358529]
[1645142630854,0.061887,40424.0,40421.0,0.19801319]
[1645142631053,0.061887,40424.0,40419.0,0.00025196]
[1645142631254,0.061887,40424.0,40418.0,0.00025196]
[1645142631553,0.061887,40424.0,40421.0,0.31195071]
[1645142631794,0.00021952,40427.0,40426.0,0.06463896]
[1645142632193,0.18563983,40429.0,40426.0,0.06463896]
[1645142632391,0.18585937,40429.0,40426.0,0.06463896]
[1645142632590,0.06188,40428.0,40427.0,0.25129751]
[1645142632790,0.06188,40428.0,40427.0,0.25154947]
[1645142633794,0.06188,40428.0,40427.0,0.00025196]
[1645142633991,0.12377,40427.0,40426.0,0.30463896]
[1645142634397,0.17377,40427.0,40426.0,0.30463896]
[1645142634593,0.22377,40427.0,40426.0,0.02063896]
[1645142634797,0.22377,40427.0,40422.0,0.00025196]
[1645142634798,0.81190136,40426.0,40422.0,0.00025196]
[1645142635096,0.05,40424.0,40421.0,0.0008595]
[1645142635296,0.05,40424.0,40411.0,0.00021963]
[1645142635297,0.05,40422.0,40411.0,0.00021963]
[1645142635547,1.299,40420.0,40417.0,0.00024937]
[1645142635745,0.06192195,40418.0,40404.0,0.000621]
[1645142635943,0.121021,40417.0,40412.0,0.00024815]
[1645142636141,0.121021,40417.0,40411.0,0.00021961]
[1645142636343,0.29485688,40417.0,40411.0,0.00021961]
[1645142636644,0.21635559,40408.0,40405.0,0.00024815]
[1645142636844,0.0494,40407.0,40404.0,0.000621]
[1645142637143,0.061922,40406.0,40404.0,0.000621]
[1645142637345,0.061922,40406.0,40405.0,0.24348819]
[1645142637643,0.231361,40406.0,40402.0,0.00024699]
[1645142637842,0.231361,40406.0,40401.0,0.70009727]
[1645142637843,0.29328235,40406.0,40401.0,0.50351086]
[1645142638046,0.29328235,40406.0,40401.0,0.70040079]
[1645142638244,0.169439,40406.0,40404.0,0.22161247]
[1645142638446,0.169439,40406.0,40402.0,0.0004666]
[1645142638842,0.169439,40406.0,40402.0,0.24214828]
[1645142639392,0.169439,40406.0,40403.0,0.32389249]
[1645142639593,0.169439,40406.0,40403.0,0.32413948]
[1645142639794,0.061919,40405.0,40403.0,0.32413948]
[1645142640394,0.061919,40405.0,40403.0,0.32538148]
[1645142640998,0.05545196,40405.0,40403.0,0.32538148]
[1645142641194,0.05184196,40405.0,40403.0,0.32538148]
[1645142642948,8.465e-05,40406.0,40403.0,0.32538148]
[1645142643745,8.465e-05,40406.0,40404.0,0.0097]
[1645142643946,8.465e-05,40406.0,40404.0,0.00994699]
[1645142644444,8.465e-05,40406.0,40404.0,0.01118899]
[1645142644646,8.465e-05,40406.0,40404.0,0.31258745]
[1645142644845,8.465e-05,40406.0,40404.0,0.010942]
[1645142645946,8.465e-05,40406.0,40404.0,0.34231218]
[1645142646795,8.465e-05,40406.0,40404.0,0.40231218]
[1645142646995,8.465e-05,40406.0,40404.0,0.40255917]
[1645142647198,0.061901,40408.0,40404.0,0.40255917]
[1645142647395,0.061901,40408.0,40406.0,0.24551112]
[1645142647595,0.061901,40408.0,40404.0,0.39755917]
[1645142647795,0.061901,40408.0,40405.0,0.0002445]
[1645142648094,0.061901,40408.0,40405.0,0.00021941]
[1645142648300,0.061901,40408.0,40405.0,0.00046391]
[1645142648494,0.061901,40408.0,40405.0,0.25590225]
[1645142648694,0.061901,40408.0,40405.0,0.25614675]
[1645142648894,0.061901,40408.0,40405.0,0.25592734]
[1645142649696,8.534e-05,40409.0,40405.0,0.25592734]
[1645142649906,0.061899,40420.0,40405.0,0.25592734]
[1645142649908,0.222675,40432.0,40414.0,0.15]
[1645142650102,1.08461881,40439.0,40407.0,0.335843]
[1645142650103,0.01284885,40441.0,40422.0,0.335843]
[1645142650302,0.01284885,40441.0,40425.0,0.05]
[1645142650303,0.12374,40438.0,40425.0,0.05]
[1645142650551,0.46564281,40447.0,40430.0,0.05]
[1645142650552,0.00015,40432.0,40430.0,0.05]
[1645142650754,0.00015,40432.0,40431.0,0.60847517]
[1645142650957,0.24228139,40447.0,40431.0,0.30847517]
[1645142651154,0.24228139,40447.0,40439.0,0.20954646]
[1645142651551,0.00015,40453.0,40439.0,0.20954646]
[1645142651752,0.00013214,40441.0,40440.0,0.3091]
[1645142651951,0.00013214,40441.0,40440.0,0.4047]
[1645142652255,0.00013214,40441.0,40440.0,2.0537]
[1645142652256,2.14e-06,40441.0,40440.0,2.0537]
[1645142652453,2.14e-06,40441.0,40440.0,2.685345]
[1645142652651,0.001,40458.0,40447.0,1.66428671]
[1645142652852,0.001,40458.0,40449.0,0.55906428]
[1645142653051,0.001,40458.0,40452.0,0.1736196]
[1645142653252,0.001,40458.0,40453.0,0.39373275]
[1645142653654,0.001,40458.0,40453.0,0.51735775]
[1645142653855,0.00015,40474.0,40453.0,0.45837642]
[1645142654054,0.00015,40474.0,40464.0,0.21541795]
[1645142654323,0.00015,40474.0,40465.0,0.0092]
[1645142654526,0.26074325,40469.0,40465.0,0.0092]
[1645142654722,0.26074325,40469.0,40464.0,0.21541795]
[1645142654723,0.00015,40474.0,40464.0,0.21541795]
[1645142654922,0.00015,40474.0,40465.0,0.0092]
[1645142655122,0.05,40479.0,40465.0,0.0092]
[1645142655520,0.05015,40479.0,40465.0,0.0092]
[1645142655721,0.20830943,40473.0,40465.0,0.0092]
[1645142656126,0.25830943,40473.0,40465.0,0.0092]
[1645142656626,0.00021941,40471.0,40465.0,0.0092]
[1645142657425,0.00015,40478.0,40465.0,0.0092]
[1645142657627,0.00015,40478.0,40466.0,0.0456]
[1645142657827,0.00021941,40470.0,40468.0,0.19580892]
[1645142658052,0.00021941,40470.0,40469.0,0.0956]
[1645142658253,0.00021941,40470.0,40469.0,0.48548162]
[1645142658453,0.00021941,40470.0,40469.0,0.36190862]
[1645142658658,0.18980741,40485.0,40469.0,0.0456]
[1645142658856,0.18980741,40485.0,40468.0,0.19580892]
[1645142658857,0.00021941,40472.0,40467.0,0.26145547]
[1645142659054,0.00021941,40472.0,40465.0,0.0692]
[1645142659554,0.00021941,40472.0,40466.0,0.28311757]
[1645142659954,2.03368347,40487.0,40466.0,0.28311757]
[1645142660155,2.03368347,40487.0,40465.0,0.0692]
[1645142660156,0.05,40485.0,40465.0,0.0692]
[1645142660355,0.00021941,40471.0,40465.0,0.0692]
[1645142661160,0.20793543,40476.0,40465.0,0.0692]
[1645142661357,0.00021941,40470.0,40465.0,0.0692]
[1645142662200,9.024e-05,40470.0,40465.0,0.0692]
[1645142662600,9.024e-05,40470.0,40465.0,0.33298219]
[1645142662601,0.00030264,40470.0,40465.0,0.33298219]
[1645142663301,0.00030264,40470.0,40465.0,0.0692]
[1645142663503,9.024e-05,40470.0,40465.0,0.0692]
[1645142663905,0.00030264,40470.0,40465.0,0.0692]
[1645142664306,0.00030264,40470.0,40465.0,0.06]
[1645142664307,0.2940341,40469.0,40465.0,0.06]
[1645142664503,0.3940341,40469.0,40465.0,0.06]
[1645142664902,0.4940341,40469.0,40465.0,0.06]
[1645142665105,0.4940341,40469.0,40448.0,0.19669728]
[1645142665106,0.39999999,40466.0,40448.0,0.19669728]
[1645142665304,0.26170726,40450.0,40449.0,0.0098]
[1645142665557,0.26170726,40450.0,40445.0,0.06347]
[1645142665558,0.30730726,40450.0,40445.0,0.06347]
[1645142665755,0.45730726,40450.0,40445.0,0.06347]
[1645142665957,0.50730726,40450.0,40440.0,0.20724661]
[1645142666156,0.11873081,40448.0,40440.0,0.20724661]
[1645142666360,0.061864,40446.0,40440.0,0.20724661]
[1645142666556,0.10746344,40445.0,40440.0,0.20724661]
[1645142666758,1.77698334,40444.0,40440.0,0.20724661]
[1645142666958,0.0456,40443.0,40440.0,0.20724661]
[1645142667158,0.002,40450.0,40440.0,0.20724661]
[1645142667159,0.0456,40442.0,40440.0,0.20724661]
[1645142668559,0.001,40447.0,40440.0,0.20724661]
[1645142668560,0.00020516,40443.0,40440.0,0.20724661]
[1645142669205,0.00020516,40443.0,40440.0,0.26724661]
[1645142669603,0.33192389,40455.0,40446.0,0.33053312]
[1645142669604,0.061846,40452.0,40446.0,0.33053312]
[1645142670000,0.061846,40452.0,40440.0,0.26724661]
[1645142670200,0.30866954,40451.0,40440.0,0.26724661]
[1645142670407,0.001,40448.0,40440.0,0.061]
[1645142670600,0.001,40448.0,40440.0,0.001]
[1645142671001,0.0002143,40446.0,40441.0,0.061842]
[1645142671801,0.0002143,40446.0,40437.0,0.05]
[1645142672001,0.0456,40452.0,40444.0,0.30020855]
[1645142672202,0.0002143,40446.0,40444.0,0.35020855]
[1645142672405,0.0002143,40446.0,40444.0,0.05]
[1645142672804,0.0002143,40446.0,40444.0,0.0091]
[1645142673252,0.0638406,40451.0,40444.0,0.070939]
[1645142673448,0.00020502,40447.0,40444.0,0.070939]
[1645142674049,0.00020502,40447.0,40444.0,0.0091]
[1645142674253,0.002,40451.0,40444.0,0.0091]
[1645142674450,0.0456,40452.0,40444.0,0.0091]
[1645142674451,0.0476,40452.0,40444.0,0.0091]
[1645142674649,0.00020502,40448.0,40444.0,0.0091]
[1645142675049,0.04280502,40452.0,40444.0,0.0091]
[1645142675250,0.0618406,40451.0,40444.0,0.0091]
[1645142675951,0.0618406,40451.0,40448.0,0.30528906]
[1645142676352,0.09080502,40452.0,40448.0,0.30528906]
[1645142676552,0.002,40451.0,40448.0,0.30528906]
[1645142676801,0.002,40451.0,40448.0,0.30475621]
[1645142676997,0.002,40451.0,40450.0,0.20069543]
[1645142677601,0.002,40451.0,40448.0,0.30475621]
[1645142677798,0.002,40451.0,40444.0,0.50579728]
[1645142677999,0.002,40451.0,40444.0,0.20579728]
[1645142678199,0.002,40451.0,40447.0,0.03]
[1645142678597,0.061847,40449.0,40447.0,0.03]
[1645142678799,0.05,40450.0,40448.0,0.30517667]
[1645142678997,0.05,40450.0,40447.0,0.03]
[1645142679198,0.06383663,40451.0,40447.0,0.03]
[1645142679401,0.06404227,40451.0,40447.0,0.03]
[1645142679597,0.06204227,40451.0,40447.0,0.03]
[1645142679898,0.061845,40450.0,40447.0,0.03]
[1645142680299,0.111845,40450.0,40447.0,0.03]
[1645142681959,0.05,40450.0,40447.0,0.03]
[1645142682254,9.167e-05,40450.0,40447.0,0.03]
[1645142683154,9.167e-05,40450.0,40447.0,0.0055]
[1645142683352,9.167e-05,40450.0,40447.0,0.0555]
[1645142683553,9.167e-05,40450.0,40449.0,0.31702954]
[1645142684808,9.167e-05,40450.0,40447.0,0.0555]
[1645142685008,9.167e-05,40450.0,40447.0,0.0055]
[1645142685605,0.04763114,40451.0,40447.0,0.0055]
[1645142685806,0.061842,40450.0,40447.0,0.0055]
[1645142686009,0.061842,40450.0,40447.0,0.33039417]
[1645142686209,0.111842,40450.0,40447.0,0.0055]
[1645142686808,1.94295495,40450.0,40447.0,0.0055]
[1645142687114,0.62413546,40449.0,40447.0,0.0055]
[1645142687310,0.31340864,40448.0,40447.0,0.0055]
[1645142688061,0.35900864,40448.0,40447.0,0.0055]